Cogmind - Beta 13 X1 @@@ ROGUE MODE // 2023.09.26 @ 10:04:59 Player: DuckBoy Result: Self-destructed Performance ------------- Evolutions (5) 2500 Regions Visited (10) 2000 Robots Destroyed (78) 390 Value Destroyed (2604) 2604 Prototype IDs (18) 360 Alien Tech Used (0) 0 Bonus (1329) 1329 TOTAL SCORE: 9183 Bonus ------- High Alert Combat Kills 234 Follower Combat Kills 830 Met Data Miner 300 Friendly Fire -35 Cogmind --------- Core Integrity 738/1000 Matter 285/300 Energy 60/100 System Corruption 10% Temperature Warm (131) Movement Hovering (66) Location -5/Factory Parts ------- > --- POWER (1) -------- (None) > --- PROPULSION (4) --- Hovering Gravmag-Antigrav Exoskeleton > --- UTILITY (10) ----- Improved Coolant Injector Advanced ECM Suite Hacking Suite Hacking Suite Hacking Suite System Shield > --- WEAPON (2) ------- Spear > --- INVENTORY (5) ---- System Shield Authchip [Processor] Remote Datajack Enhanced Force Lance Peak State ------------ > --- POWER ------------ Multi-Nuclear Core > --- PROPULSION ------- Hovering Gravmag-Antigrav Exoskeleton > --- UTILITY ---------- Armored Scrap Engine Improved Coolant Injector Advanced Visual Processing Unit Hacking Suite Hacking Suite Hacking Suite Hacking Suite System Shield System Shield > --- WEAPON ----------- Lightning Gun Spear > --- INVENTORY -------- Advanced ECM Suite System Shield Authchip [Processor] Remote Datajack [Rating: 73] Favorites ----------- Power Ion Engine Engine Ion Engine Power Core Light Nuclear Core Propulsion Light Treads Treads Light Treads Wheel Subdweller Monowheel Hover Unit Constructs Flight Unit Cooled VTOL Module Utility Large Storage Unit Device Armored Scrap Engine Storage Large Storage Unit Processor Machine Analyzer Hackware Hacking Suite Weapon Constructs Energy Gun Constructs Energy Cannon Subdweller Beam Cannon Ballistic Gun Subdweller Machine Gun Ballistic Cannon Constructs Launcher Subdweller Shrapnel Launcher Special Weapon Remote Datajack Piercing Weapon Spear Build | -11 -10 -10 -10 -9 -7 -6 -6 -6 -5 -5 ------- Run | Jun Mat Min Sub Rec Fac Fac Low Dat Pro Fac Slots Evolved 10 | . . . . . 6 2 . . . 2 Power . | . . . . . . . . . . . Propulsion 2 | . . . . . 2 . . . . . Utility 8 | . . . . . 4 2 . . . 2 Weapon . | . . . . . . . . . . . Parts Attached 102 | 6 4 3 12 9 50 7 . . 2 9 Power 9 | 1 1 . 1 . 6 . . . . . Engine 5 | 1 1 . 1 . 2 . . . . . Core 4 | . . . . . 4 . . . . . Reactor . | . . . . . . . . . . . Propulsion 27 | 2 1 . 5 1 15 3 . . . . Treads 11 | 2 1 . 2 1 4 1 . . . . Leg . | . . . . . . . . . . . Wheel 4 | . . . 3 . 1 . . . . . Hover 4 | . . . . . 2 2 . . . . Flight 8 | . . . . . 8 . . . . . Utility 35 | 1 2 2 1 1 17 3 . . . 8 Device 17 | . . 1 1 1 10 1 . . . 3 Storage 4 | 1 2 1 . . . . . . . . Processor 5 | . . . . . 3 1 . . . 1 Hackware 9 | . . . . . 4 1 . . . 4 Protection . | . . . . . . . . . . . Artifact . | . . . . . . . . . . . Weapon 31 | 2 . 1 5 7 12 1 . . 2 1 Energy Gun 9 | 1 . . 1 1 5 . . . . 1 Energy Cannon 2 | . . . 2 . . . . . . . Ballistic Gun 11 | 1 . 1 1 4 4 . . . . . Ballistic Cannon . | . . . . . . . . . . . Launcher 4 | . . . 1 . 2 . . . 1 . Special Weapon 3 | . . . . 2 1 . . . . . Impact Weapon . | . . . . . . . . . . . Slashing Weapon . | . . . . . . . . . . . Piercing Weapon 2 | . . . . . . 1 . . 1 . Special Melee Weapon . | . . . . . . . . . . . Unidentified Prototypes 3 | . . . . 1 1 . . . . 1 Corrupted Parts 2 | . . . . . 2 . . . . . System Corruption 4 | . . . . . 4 . . . . . Parts Lost 43 | . 1 1 5 . 19 3 . . 4 10 Power 8 | . 1 . 1 . 3 1 . . 1 1 Propulsion 13 | . . . 2 . 8 2 . . . 1 Utility 11 | . . . . . 3 . . . 1 7 Weapon 11 | . . 1 2 . 5 . . . 2 1 Highest Loss Streak 7 | . 1 1 2 . 7 2 . . 3 7 To Critical Strikes 1 | . . . . . . . . . . 1 Average Slot Usage (%) 84 | . 87 100 98 100 73 72 86 86 73 61 Engine 7 | . 13 14 13 14 2 1 . 4 3 . Treads 13 | . 28 28 16 27 6 . . . . . Wheel 1 | . . . 10 . . . . . . . Hover 2 | . . . . . 2 10 20 20 11 1 Flight 4 | . . . . . 11 . . . 2 3 Device 12 | . . 6 14 14 14 12 13 13 9 10 Storage 8 | . 16 21 14 14 3 . . . . . Processor 6 | . . . . . 13 11 13 13 13 9 Hackware 3 | . . . . . 1 16 20 20 20 24 Energy Gun 6 | . 14 14 10 . 5 6 6 6 5 1 Ballistic Gun 8 | . 14 14 6 18 5 . . . . . Launcher 1 | . . . 7 . 1 . . . . . Special Weapon 2 | . . . . 8 . . . . . . Naked Turns . | . . . . . . . . . . . Heaviest Build 42 | 12 34 34 39 39 42 18 14 14 14 13 Greatest Support 56 | 40 40 40 40 40 56 34 34 34 34 19 Greatest Overweight (x) 3 | . . . 1 1 3 1 . . . 1 Average Overweight (x) . | . . . . . . . . . . . Largest Inventory Capacity 15 | 8 15 15 15 15 15 5 5 5 5 5 Average Capacity 11 | 7 9 15 15 15 9 5 5 5 5 5 Most Carried 15 | 2 5 6 15 15 15 5 5 5 5 5 Average Carried 9 | 1 3 5 13 14 8 4 5 5 4 4 Final Capacity 15 | 8 15 15 15 15 5 5 5 5 5 5 Final Carried 15 | 2 5 6 15 15 5 5 5 5 4 4 Scrap Engine Consumption 94 | . . . . . 57 20 4 . 4 9 Constructs Created 11 | . . . . . 8 2 . . . 1 Constructs Modified 17 | . . . . . 7 4 . 1 2 3 Class Distribution -------------------- 33% | Mutant 21% | Commander-Mutant 15% | Hacker-Mutant 14% | Scavenger-Mutant 5% | Sprinter 4% | Construct 4% | Commander-Construct Dominant Class ---------------- Mutant | -10/Materials Mutant | -10/Mines Scavenger-Mutant | -10/Subcaves Commander-Mutant | -9/Recycling Mutant | -7/Factory Hacker-Mutant | -6/Factory Hacker-Mutant | -6/Lower Caves Hacker-Mutant | -6/Data Miner Hacker-Mutant | -5/Proximity Caves Hacker-Mutant | -5/Factory Resources | -11 -10 -10 -10 -9 -7 -6 -6 -6 -5 -5 ----------- Run | Jun Mat Min Sub Rec Fac Fac Low Dat Pro Fac Matter Collected 2245 | 247 155 93 178 401 890 144 . . 80 57 Remotely . | . . . . . . . . . . . Salvage Created 2967 | . 489 118 186 329 1290 390 . . 108 57 Parts 169 | . 32 13 9 13 59 34 . . 4 5 Haulers Intercepted 2 | . 2 . . . . . . . . . Recyclers Shooed 3 | . . . . 1 1 1 . . . . Parts Field Recycled . | . . . . . . . . . . . Retrieved Matter . | . . . . . . . . . . . Parts Self-Destructed 22 | . . . 17 . . . . . 5 . Prevented . | . . . . . . . . . . . Kills | -11 -10 -10 -10 -9 -7 -6 -6 -6 -5 -5 ------- Run | Jun Mat Min Sub Rec Fac Fac Low Dat Pro Fac Combat Hostiles Destroyed 57 | . 8 5 4 4 23 8 . . 3 2 Melee 5 | . . . . . . 2 . . 1 2 Guns 39 | . 8 5 2 4 17 3 . . . . Cannons 3 | . . . 1 . 1 1 . . . . AOE 10 | . . . 1 . 5 2 . . 2 . Classes Destroyed 16 | . 4 2 2 4 2 2 . . . . Worker 4 | . 2 . . . 2 . . . . . Builder 2 | . . . . . 2 . . . . . Tunneler 1 | . . 1 . . . . . . . . Hauler 2 | . 2 . . . . . . . . . Recycler 8 | . . . . 2 5 1 . . . . Operator 1 | . . . . . . 1 . . . . Watcher 3 | . 1 . . . 1 1 . . . . Swarmer 17 | . . 3 . . 9 3 . . . 2 Cutter 3 | . . . . . . 3 . . . . Grunt 12 | . 8 2 . . 2 . . . . . Brawler 2 | . . . . . 2 . . . . . Sentry 8 | . . . . 2 5 1 . . . . Hunter 2 | . . . . 1 1 . . . . . Programmer 9 | . . . . 1 4 1 . . 3 . Artisan 1 | . . . 1 . . . . . . . Subdweller 4 | . . . 4 . . . . . . . Best Kill Streak 6 | . 4 3 2 1 6 4 . . 2 1 Combat Bots Only 4 | . 2 3 2 1 4 4 . . 2 1 Max Kills in Single Turn 3 | . 2 2 1 1 3 2 . . 1 1 Gunslinging . | . . . . . . . . . . . Exploded 2 | . . . 1 . 2 2 . . 1 . Melee 1 | . . . . . . 1 . . 1 1 Uniques/NPCs Destroyed . | . . . . . . . . . . . Combat | -11 -10 -10 -10 -9 -7 -6 -6 -6 -5 -5 -------- Run | Jun Mat Min Sub Rec Fac Fac Low Dat Pro Fac Damage Taken 6577 | . 332 182 629 . 2857 528 . . 1072 977 Core 1274 | . 26 8 106 . 490 81 . . 301 262 Absorbed by Shields 54 | . . . . . 54 . . . . . Regen/Repaired (Parts) 1252 | . . . . . 645 260 118 16 18 195 Core Remaining (%) 57 | 100 . . . 44 30 . . . 55 . Volleys Fired 289 | . 34 13 40 54 119 21 . . 6 2 Largest 2 | . 2 2 2 2 2 2 . . 1 1 Hottest 140 | . 70 70 140 90 130 91 . . 39 55 Shots Fired 447 | . 68 26 54 61 189 42 . . 5 2 Gun 347 | . 68 26 33 23 174 21 . . . 2 Cannon 48 | . . . 20 . 7 21 . . . . Launcher 11 | . . . 1 . 5 . . . 5 . Special 41 | . . . . 38 3 . . . . . Kinetic 186 | . 34 13 15 21 82 21 . . . . Thermal 174 | . 34 13 39 2 65 21 . . . . Explosive 6 | . . . . . 1 . . . 5 . Electromagnetic 43 | . . . . . 41 . . . . 2 Robot Hit Streak 22 | . 7 5 10 10 22 7 . . 3 1 Robot Miss Streak 8 | . 4 4 1 2 8 6 . . 1 2 Penetration Max . | . . . . . . . . . . . Secondary Targets 6 | . 1 . . 1 4 . . . . . Max Gunslinging Chain 1 | . 1 . . 1 1 . . . . . Shots Hit Robots 301 | . 39 13 25 48 130 32 . . 8 6 Core Hits 170 | . 25 10 6 10 78 26 . . 11 4 Critical Kills . | . . . . . . . . . . . Critical Parts Destroyed . | . . . . . . . . . . . Critical Strikes 10 | . 4 2 . . 4 . . . . . Burn 9 | . 4 2 . . 3 . . . . . Corrupt 1 | . . . . . 1 . . . . . Melee Attacks 64 | . . . . . . 12 . . 18 34 Impact . | . . . . . . . . . . . Slashing . | . . . . . . . . . . . Piercing 64 | . . . . . . 12 . . 18 34 Sneak Attacks . | . . . . . . . . . . . Combat Hostiles . | . . . . . . . . . . . Follow-up Attacks . | . . . . . . . . . . . Damage Inflicted 6820 | . 530 194 546 336 3607 900 . . 535 172 Guns 3793 | . 530 168 183 307 2284 283 . . . 38 Cannons 865 | . . . 303 . 204 358 . . . . Explosions 1722 | . . . 60 . 1094 211 . . 357 . Melee 355 | . . . . . . 48 . . 178 129 Ramming 65 | . . 26 . 29 5 . . . . 5 Kinetic 2735 | . 242 57 180 279 1619 358 . . . . Thermal 2532 | . 288 111 366 28 1456 283 . . . . Explosive 600 | . . . . . 32 211 . . 357 . Electromagnetic 533 | . . . . . 495 . . . . 38 Impact . | . . . . . . . . . . . Slashing . | . . . . . . . . . . . Piercing 355 | . . . . . . 48 . . 178 129 Highest Corruption 10 | . 2 2 2 2 6 . . . 8 10 Average Corruption 3 | . 2 2 2 2 4 . . . 4 9 Corruption Purged 4 | . . . . . 4 . . . . . Corruption Blocked 8 | . . . . . 8 . . . . . Effects 119 | . 4 15 12 23 56 . . . 5 4 Message Errors 30 | . 2 3 2 6 14 . . . 3 . Matter Fused 29 | . 1 5 3 7 12 . . . 1 . Heat Flow Errors 12 | . . . . 4 6 . . . . 2 Energy Discharges 13 | . . 1 2 2 8 . . . . . Parts Rejected 2 | . . . . . 2 . . . . . Data Loss (minor) 19 | . 1 2 3 3 9 . . . . 1 Data Loss (major) 6 | . . 2 1 . 2 . . . . 1 Misfires 1 | . . 1 . . . . . . . . Alerts 5 | . . 1 1 1 2 . . . . . Weapon Failures 2 | . . . . . 1 . . . 1 . Overload Shots . | . . . . . . . . . . . Overflow Damage 145 | . . . . . 121 . . . 14 10 Projectiles . | . . . . . . . . . . . Explosions 135 | . . . . . 121 . . . 14 . Melee 10 | . . . . . . . . . . 10 Knockbacks 12 | . . . . . . 12 . . . . Impact . | . . . . . . . . . . . Kinetic 12 | . . . . . . 12 . . . . Secondary . | . . . . . . . . . . . Self-Inflicted Damage 457 | . . . 58 . 248 111 . . 38 2 Shots 9 | . . . 1 . 6 1 . . 1 . Rammed 12 | . . 6 . 2 2 . . . . 2 Targets Rammed 16 | . 1 7 . 4 2 . . . . 2 Kicked . | . . . . . . . . . . . Crushed 4 | . 1 1 . 2 . . . . . . Highest Temperature 425 | . 147 121 24 279 270 54 . . 5 425 Average Temperature 53 | . 43 67 9 98 45 16 . . 2 171 Received Heat Transfer 1326 | . 186 78 168 . 591 66 . . 156 81 Effects 1 | . . . . . . . . . . 1 Damage (major) 1 | . . . . . . . . . . 1 Siege Activations . | . . . . . . . . . . . Robots Corrupted . | . . . . . . . . . . . Combat Hostiles . | . . . . . . . . . . . Parts Fried 2 | . . . . . 2 . . . . . Impact Corruptions . | . . . . . . . . . . . Robots Melted . | . . . . . . . . . . . Combat Hostiles . | . . . . . . . . . . . Parts Melted 11 | . 3 . 3 . 4 1 . . . . Heat Transferred 5388 | . 1147 481 482 25 2603 650 . . . . Parts Sabotaged . | . . . . . . . . . . . Parts Stolen . | . . . . . . . . . . . Parts Stripped . | . . . . . . . . . . . Power Chain Reactions 2 | . . . . . 2 . . . . . Missiles Intercepted . | . . . . . . . . . . . Alert | -11 -10 -10 -10 -9 -7 -6 -6 -6 -5 -5 ------- Run | Jun Mat Min Sub Rec Fac Fac Low Dat Pro Fac Peak Influence 1121 | . 243 147 . 140 1121 718 . . . 353 Initial 539 | . . 16 . 36 225 539 . . . 130 Average 264 | . 127 50 . 24 428 586 . . . 183 Maximum Alert Level 4 | . 1 . . . 4 3 . . . 1 Low Security (%) 55 | 100 76 100 . 100 22 . . . . 81 Level 1 19 | . 23 . . . 37 . . . . 18 Level 2 17 | . . . . . 22 94 . . . . Level 3 8 | . . . . . 17 5 . . . . Level 4 . | . . . . . . . . . . . Level 5 . | . . . . . . . . . . . High Security . | . . . . . . . . . . . Max Security . | . . . . . . . . . . . Squads Dispatched 25 | . . . . . 15 6 . . . 4 Investigation 8 | . . . . . 5 2 . . . 1 Extermination 7 | . . . . . 5 1 . . . 1 Reinforcement 7 | . . . . . 2 3 . . . 2 Assault . | . . . . . . . . . . . Garrison 3 | . . . . . 3 . . . . . Intercept . | . . . . . . . . . . . Searches Triggered . | . . . . . . . . . . . Data Miner Redirects 1 | . . . . . . . . . . 1 Construction Impeded . | . . . . . . . . . . . Haulers Reinforced . | . . . . . . . . . . . Active Scanning Responses . | . . . . . . . . . . . Cargo Convoy Interrupts . | . . . . . . . . . . . Stealth | -11 -10 -10 -10 -9 -7 -6 -6 -6 -5 -5 --------- Run | Jun Mat Min Sub Rec Fac Fac Low Dat Pro Fac Distress Signals 8 | . 3 . . . 2 1 . . . 2 Communications Jammed . | . . . . . . . . . . . Distress Signals . | . . . . . . . . . . . Times Spotted 167 | . 13 6 16 4 73 14 . . 18 23 Peak Tracking Total 10 | . 3 4 2 2 6 4 . . 7 10 Tactical Retreats 20 | . . 2 2 . 5 3 . . 4 4 Traps | -11 -10 -10 -10 -9 -7 -6 -6 -6 -5 -5 ------- Run | Jun Mat Min Sub Rec Fac Fac Low Dat Pro Fac Traps Triggered 4 | . 1 . . . 2 1 . . . . Indirectly . | . . . . . . . . . . . Trap Hack Attempts . | . . . . . . . . . . . Triggered . | . . . . . . . . . . . Disarmed . | . . . . . . . . . . . Reprogrammed . | . . . . . . . . . . . Reused . | . . . . . . . . . . . Traps Extracted . | . . . . . . . . . . . Installed . | . . . . . . . . . . . Triggered . | . . . . . . . . . . . Machines | -11 -10 -10 -10 -9 -7 -6 -6 -6 -5 -5 ---------- Run | Jun Mat Min Sub Rec Fac Fac Low Dat Pro Fac Machines Disabled 15 | . . . . . 14 1 . . . . Max in Single Turn 11 | . . . . . 11 1 . . . . Garrison Access 1 | . . . . . 1 . . . . . Machines Repaired . | . . . . . . . . . . . Machines Sabotaged . | . . . . . . . . . . . Overloaded Fab Kills . | . . . . . . . . . . . Hacking | -11 -10 -10 -10 -9 -7 -6 -6 -6 -5 -5 --------- Run | Jun Mat Min Sub Rec Fac Fac Low Dat Pro Fac Machines Accessed 44 | . 1 2 . 9 23 1 . 4 . 4 Terminals 25 | . 1 1 . 6 14 . . . . 3 Fabricators 7 | . . . . . 5 1 . . . 1 Repair Stations 2 | . . . . . 2 . . . . . Recycling Units 4 | . . . . 3 1 . . . . . Scanalyzers . | . . . . . . . . . . . Garrison Access 1 | . . . . . 1 . . . . . Total Hacks 134 | . 2 3 . 23 60 3 . 29 . 14 Successful 82 | . . 3 . 9 30 2 . 29 . 9 Failed 52 | . 2 . . 14 30 1 . . . 5 Catastrophic 10 | . 1 . . 1 7 . . . . 1 Database Lockouts . | . . . . . . . . . . . Manual 60 | . 1 2 . 17 33 . . . . 7 Terminals 66 | . 2 2 . 16 37 . . . . 9 Fabricators 22 | . . . . . 14 3 . . . 5 Repair Stations 5 | . . . . . 5 . . . . . Recycling Units 10 | . . . . 7 3 . . . . . Scanalyzers . | . . . . . . . . . . . Garrison Access 1 | . . . . . 1 . . . . . Terminal Hacks 48 | . . 2 . 1 12 . . 29 . 4 Record 11 | . . . . . . . . 11 . . Part Schematic 15 | . . . . . 5 . . 10 . . Robot Schematic 9 | . . 1 . . 3 . . 5 . . Prototype ID Bank 3 | . . . . . . . . 3 . . Open Door 1 | . . 1 . . . . . . . . Level Access Points 1 | . . . . . . . . . . 1 Branch Access Points 1 | . . . . . . . . . . 1 Terminal Index 1 | . . . . . 1 . . . . . Fabricator Index 2 | . . . . . 1 . . . . 1 Garrison Index 2 | . . . . 1 . . . . . 1 Unreport Threat 1 | . . . . . 1 . . . . . Locate Traps 1 | . . . . . 1 . . . . . Fabricator Hacks 13 | . . . . . 8 2 . . . 3 Load Schematic 6 | . . . . . 4 1 . . . 1 Build 7 | . . . . . 4 1 . . . 2 Repair Station Hacks . | . . . . . . . . . . . Recycling Unit Hacks 3 | . . . . 3 . . . . . . Retrieve Components 3 | . . . . 3 . . . . . . Scanalyzer . | . . . . . . . . . . . Garrison Access Hacks 1 | . . . . . 1 . . . . . Seal Access 1 | . . . . . 1 . . . . . Unauthorized Hacks 17 | . . 1 . 5 9 . . . . 2 Terminals 12 | . . 1 . 2 7 . . . . 2 Assimilate 2 | . . . . . 1 . . . . 1 Botnet 10 | . . 1 . 2 6 . . . . 1 Fabricators 1 | . . . . . 1 . . . . . Recompile 1 | . . . . . 1 . . . . . Repair Stations 1 | . . . . . 1 . . . . . Mechanics 1 | . . . . . 1 . . . . . Recycling Units 3 | . . . . 3 . . . . . . Tunnel 3 | . . . . 3 . . . . . . Scanalyzers . | . . . . . . . . . . . Garrison Access . | . . . . . . . . . . . Data Cores Recovered . | . . . . . . . . . . . Used . | . . . . . . . . . . . Hacking Detections 34 | . 1 1 . 7 20 1 . . . 4 Full Trace Events 7 | . . . . 1 4 1 . . . 1 Feedback Events . | . . . . . . . . . . . Feedback Blocked . | . . . . . . . . . . . Robot Schematics Acquired 9 | . . 1 . . 3 . . 5 . . Robots Built 3 | . . . . . 3 . . . . . Authchips . | . . . . . . . . . . . Time 107 | . . . . . 107 . . . . . Total Robot Build Rating 9 | . . . . . 9 . . . . . Part Schematics Acquired 15 | . . . . . 5 . . 10 . . Parts Built 7 | . . . . . 3 2 . . . 2 Authchips 1 | . . . . . 1 . . . . . Time 278 | . . . . . 77 53 . . . 148 Total Part Build Rating 41 | . . . . . 15 12 . . . 14 Parts Repaired . | . . . . . . . . . . . Time . | . . . . . . . . . . . Parts Recycled . | . . . . . . . . . . . Recycled Matter . | . . . . . . . . . . . Retrieved Matter . | . . . . . . . . . . . Retrieved Components 18 | . . . . 18 . . . . . . Parts Scanalyzed . | . . . . . . . . . . . Part Schematics Acquired . | . . . . . . . . . . . Parts Damaged . | . . . . . . . . . . . Bothacking | -11 -10 -10 -10 -9 -7 -6 -6 -6 -5 -5 ------------ Run | Jun Mat Min Sub Rec Fac Fac Low Dat Pro Fac Used RIF Installer . | . . . . . . . . . . . Robots Hacked . | . . . . . . . . . . . Non-combat . | . . . . . . . . . . . Combat . | . . . . . . . . . . . Robot Hacks Applied . | . . . . . . . . . . . Relay Couplers Released . | . . . . . . . . . . . Fabnet Peak Effective % . | . . . . . . . . . . . Robots Rewired 16 | . . . . 16 . . . . . . Allies Hacked 7 | . . . . . 7 . . . . . Hacks Repelled . | . . . . . . . . . . . Allies | -11 -10 -10 -10 -9 -7 -6 -6 -6 -5 -5 -------- Run | Jun Mat Min Sub Rec Fac Fac Low Dat Pro Fac Total Allies 27 | . . . . 16 9 . . . 1 1 Largest Group 15 | . . . . 15 15 . . . 1 1 Highest-Rated Group 170 | . . . . 170 170 . . . 96 10 Highest-Rated Ally 96 | . . . . 27 37 . . . 96 10 Total Orders 50 | . . . . 3 47 . . . . . STAY 2 | . . . . . 2 . . . . . FOLLOW 2 | . . . . 1 1 . . . . . TUNNEL 22 | . . . . . 22 . . . . . COLLECT 1 | . . . . 1 . . . . . . RETURN 23 | . . . . 1 22 . . . . . Ally Attacks 227 | . . . . 20 192 . . . 15 . Total Damage 3375 | . . . . 216 2522 . . . 637 . Kills 27 | . . . . 3 21 . . . 3 . Allies Corrupted . | . . . . . . . . . . . Allies Melted . | . . . . . . . . . . . Intel | -11 -10 -10 -10 -9 -7 -6 -6 -6 -5 -5 ------- Run | Jun Mat Min Sub Rec Fac Fac Low Dat Pro Fac Robot Analysis Total . | . . . . . . . . . . . Derelict Logs Recovered 2 | . . 1 . . . . . . 1 . Drone Launches 43 | . . . . 1 42 . . . . . Drone Recoveries 41 | . . . . 1 40 . . . . . Exploration | -11 -10 -10 -10 -9 -7 -6 -6 -6 -5 -5 ------------- Run | Jun Mat Min Sub Rec Fac Fac Low Dat Pro Fac Turns Passed 9509 | 63 429 972 1034 1917 3606 607 64 49 284 484 Spaces Moved 7738 | 36 181 568 664 1090 3308 573 103 81 403 731 Core 21 | 4 . . . . 17 . . . . . Treads 2860 | 32 181 568 224 1034 806 15 . . . . Legs . | . . . . . . . . . . . Wheels 534 | . . . 440 56 38 . . . . . Hover 2061 | . . . . . 950 558 103 81 172 197 Flight 2262 | . . . . . 1497 . . . 231 534 Fastest Speed 26 | 50 160 160 110 120 26 60 60 60 48 48 Average Speed 98 | 147 160 160 135 157 79 73 60 60 53 50 Slowest Speed 250 | 160 160 160 240 160 250 160 60 60 66 95 Overloaded Moves 3 | . . . . . 3 . . . . . Propulsion Burnouts . | . . . . . . . . . . . Robots Hopped 20 | . . . . . 20 . . . . . Cave-ins Triggered 1 | . . . . . . . . . . 1 Exploration Rate (%) 52 | 3 36 97 54 99 75 19 19 73 77 20 Regions Visited 10 Branch Regions 6 Pre-discovered Areas 4 | . . . . 3 . . . 1 . . Known Exits Taken 1 | . . . . . . . . . 1 . Unknown Exits Taken 9 | 1 1 1 1 1 1 1 1 1 . . Scrap Searched 7 | . . 1 4 . . . 2 . . . Spaces Dug 43 | . . . . . . 4 . . 25 14 Terrain Destroyed 229 | . . . 26 . 78 36 . . 75 14 Melee 23 | . . . . . . 4 . . 5 14 Projectile 3 | . . . 2 . 1 . . . . . AOE 203 | . . . 24 . 77 32 . . 70 . Terrain Rammed . | . . . . . . . . . . . Walls Destroyed . | . . . . . . . . . . . Machines Disabled . | . . . . . . . . . . . Actions | -11 -10 -10 -10 -9 -7 -6 -6 -6 -5 -5 --------- Run | Jun Mat Min Sub Rec Fac Fac Low Dat Pro Fac Total 9064 | 43 251 602 742 1243 4081 691 104 80 438 789 Wait 731 | . 28 8 9 46 550 73 2 . 8 7 Move 7691 | 35 180 567 663 1089 3270 572 102 80 402 731 Hop 17 | . . . . . 17 . . . . . Pick Up 50 | 2 3 2 14 3 22 2 . . . 2 Fast Attach 50 | 6 2 2 2 3 21 7 . . . 7 Attach 32 | . 1 1 5 1 21 . . . 1 2 Detach 4 | . . . . . 4 . . . . . Swap 20 | . 1 . 5 5 8 . . . 1 . Drop 69 | . 1 2 4 7 47 4 . . 2 2 Fire 289 | . 34 13 40 54 119 21 . . 6 2 Melee 64 | . . . . . . 12 . . 18 34 Ram 2 | . . . . . . . . . . 2 Kick . | . . . . . . . . . . . Crush 14 | . 1 7 . 4 2 . . . . . Escape Stasis . | . . . . . . . . . . . Rewire 31 | . . . . 31 . . . . . . Trap . | . . . . . . . . . . . Miscellaneous . | . . . . . . . . . . . Route ------- -11/Junkyard -10/Materials -10/Mines (discovered 3 exits: [*Mat x2] / [*Sub]) -10/Subcaves -9/Recycling -7/Factory (discovered 6 exits: *Fac x4 / [*Low x2]) -6/Factory -6/Lower Caves -6/Data Miner -5/Proximity Caves -5/Factory (discovered 6 exits: Fac x4 / *Upp x2) History --------- Turn | Location | Event 28 | -11/Junkyard | Discovered new exit (range 16) 64 | -11/Junkyard | Entered Materials 245 | -10/Materials | Discovered new exit (range 16) 322 | -10/Materials | Build established: Mutant 493 | -10/Materials | Entered Mines 628 | -10/Mines | Learned Materials trap positions 908 | -10/Mines | Received a Rocket Launcher from a helpful Derelict 995 | -10/Mines | Discovered new exit (range 8) 1028 | -10/Mines | Discovered new exit (range 10) 1143 | -10/Mines | Discovered new exit (range 6) 1314 | -10/Mines | Found the Drone Emporium 1344 | -10/Mines | Found Prototype Device 1465 | -10/Mines | Entered Subcaves 1478 | -10/Subcaves | Discovered new exit (range 14) 1621 | -10/Subcaves | Shifting Twisted Machinery released Enh. Flamer 1648 | -10/Subcaves | Shifting Twisted Machinery released Sub. Beam Cannon 1924 | -10/Subcaves | Disturbed a concealed Subdweller 1938 | -10/Subcaves | Core integrity fell below 50% 2226 | -10/Subcaves | Build established: Scavenger-Mutant 2320 | -10/Subcaves | A swath of the cavern ceiling suddenly collapsed 2400 | -10/Subcaves | A swath of the cavern ceiling suddenly collapsed 2499 | -10/Subcaves | Entered Recycling 2500 | -9/Recycling | Found Unknown Device 2686 | -9/Recycling | Identified Thief Drone Bay 2951 | -9/Recycling | Discovered new exit (range 15) 3537 | -9/Recycling | Build established: Commander-Mutant 4416 | -9/Recycling | Entered Factory 4416 | -7/Factory | Accompanied by 15 allies 4416 | -7/Factory | Evolved 6 slots: Propulsion x2, Utility x4 4706 | -7/Factory | Identified Scrap Engine 5099 | -7/Factory | Discovered new exit (range 10) 5184 | -7/Factory | Discovered new exit (range 14) 5472 | -7/Factory | Lost 3 parts (1n1u1w) 5562 | -7/Factory | Build established: Mutant 5870 | -7/Factory | Discovered new exit (range 8) 6283 | -7/Factory | Discovered new exit (range 3) 6481 | -7/Factory | Fabricated Hacking Suite (x1) 6768 | -7/Factory | Core integrity fell below 50% 6781 | -7/Factory | Fabricated P-60 Hacker? 6822 | -7/Factory | Lost 7 parts (1p3n1u2w) 6844 | -7/Factory | Hacker 4a assimilated hostile S-27 Virus 6879 | -7/Factory | Discovered new exit (range 5) 7203 | -7/Factory | Hacker 4b assimilated hostile B-48 Gladiator 7261 | -7/Factory | Hacker 4b assimilated hostile G-47 Trooper 7266 | -7/Factory | Hacker 4b assimilated hostile G-50 Soldier 7326 | -7/Factory | Fabricated T-07 Excavator? 7567 | -7/Factory | Build established: Commander-Construct 7600 | -7/Factory | Fabricated Gyrokinetic Inverter (x2) 7807 | -7/Factory | Garrison activated, responded to threat 7924 | -7/Factory | Discovered new exit (range 12) 7953 | -7/Factory | Build established: Construct 8022 | -7/Factory | Entered another Factory area 8022 | -6/Factory | Evolved 2 slots: Utility x2 8053 | -6/Factory | Spotted B-75 Beast 8298 | -6/Factory | Build established: Hacker-Mutant 8398 | -6/Factory | Fabricated Gyrokinetic Inverter (x2) 8626 | -6/Factory | Discovered new exit (range 6) 8629 | -6/Factory | Entered Lower Caves 8685 | -6/Lower Caves | A Derelict revealed a hidden shortcut to meet someone special 8693 | -6/Lower Caves | Entered Data Miner 8693 | -6/Data Miner | Discovered new exit (range 6) 8703 | -6/Data Miner | Met Data Miner 8718 | -6/Data Miner | Learned location of Section 7 (-2) 8718 | -6/Data Miner | Acquired the access code to Warlord's prototype stash 8728 | -6/Data Miner | Received God Mode back door access code from Data Miner 8742 | -6/Data Miner | Entered Proximity Caves 8758 | -5/Proximity Caves | Unaware initiated a cargo recovery operation 8869 | -5/Proximity Caves | Attracted the attention of an 0b10 checkpoint 8886 | -5/Proximity Caves | Identified exit to Factory 8940 | -5/Proximity Caves | Lost 3 parts (1p1u1w) 8995 | -5/Proximity Caves | Spotted B-75 Beast 9026 | -5/Proximity Caves | Entered Factory 9026 | -5/Factory | Evolved 2 slots: Utility x2 9071 | -5/Factory | Spotted B-75 Beast 9105 | -5/Factory | Identified exit to Factory 9105 | -5/Factory | Identified exit to Upper Caves 9364 | -5/Factory | Fabricated Enh. Force Lance? 9426 | -5/Factory | Crushed by falling debris 9432 | -5/Factory | Incoming investigation squad redirected 9491 | -5/Factory | Lost 7 parts (1p1n4u1w) 9493 | -5/Factory | System corruption reached 10% 9496 | -5/Factory | Fabricated Combat Drone Bay? 9510 | -5/Factory | Self-destructed Last Messages --------------- 09442_ Manufacturing Mainframe disabled. 09444_ Scrap Engine modifies Hovering Gravmag-Antigrav Exoskeleton: Heat +5, Time/Move +18 Expanded to 3 slots (? T66 S18). 09452_ U-05 Engineer builds a Wall. 09453_ System corrupted: Component data lost. 09454_ Multi-Nuclear Core destroyed. 09454_ Scrap Engine damaged due to network destabilization (-10). 09458_ System Shield destroyed. 09458_ Lightning Gun destroyed. 09460_ Adv. Visual Processing Unit destroyed. 09461_ Slammed into L-41 Fighter. 09467_ Slammed into K-01 Serf. 09469_ System corrupted: Substantial component data lost. 09480_ Acquired Hacking Suite. 09490_ Scrap Engine consumes Prototype Power Core. 09490_ System corrupted: Heat flow error (+244). 09496_ >> FABRICATOR: Completed Combat Drone Bay? 09507_ Scrap Engine destroyed. 09508_ System corrupted: Heat flow error (+271). Map ----- +----------------------------------------------------+ | ?????????????????????????????????????????????????? | | ?????????????????????????????????????????????????? | | ?????????????????????????????????????????????????? | | ?????????????????????????????????????????????????? | | ?????????????????????????????????????????????????? | | ?????????????????????????????????????????????????? | | ?????????????????????????????????????????????????? | | ?????????????????????????????????????????????????? | | ?????????????????????????????????????????????????? | | ?????????????????????????????????????????????????? | | ?????????????????????????????????????????????????? | | ?????????????????????????????????????????????????? | | ?????????????????????????????????????????????????? | | ?????????????????????????????????????????????????? | | ##???????????????????????????????????????????????? | | #####???????????????????????????????????????????? | | ????????????????????????????????????????????? | | ?????????????????????????????????????????????? | | ?????????????????????????????????????????????? | | #????????######?###########?????????????????????? | | #???????? #?# #?????????????????????? | | #??##### #?# """ #?????????????????????? | | #### ! # #?# """ #?????????????????????? | | + #?# """ ! !!#?????????????????????? | | ##### # #?# ! #?????????????????????? | | ????## ## #?# @ #?????????????????????? | | ?????# #??######?# #?????????????????????? | | ???### ###???????# #?????????????????????? | | ???# #############+#####?????????????????????? | | ???# #????????????????????????? | | ???# #????????????????????????? | | ???# #????????????????????????? | | ???# ##+#############????????????????????????? | | ???## ## ???????????????????????????????????? | | ????# ## [ ?????????????????????????????????? | | ????# + ! ???????????????????????????????? | | ????# ## ?????????????????????????????? | | ????# ## ! ???????????????????????????? | | ????##+################??????????????????????????? | | ?????????????????????????????????????????????????? | | ?????????????????????????????????????????????????? | | ?????????????????????????????????????????????????? | | ?????????????????????????????????????????????????? | | ?????????????????????????????????????????????????? | | ?????????????????????????????????????????????????? | | ?????????????????????????????????????????????????? | | ?????????????????????????????????????????????????? | | ?????????????????????????????????????????????????? | | ?????????????????????????????????????????????????? | | ?????????????????????????????????????????????????? | +----------------------------------------------------+ Best States ------------- Heat Dissipation 48 Coolant Potential 80 Energy Generation 16 Energy Capacity 290 Matter Stores 300 Matter Capacity 300 Sight Range 21 Robot Scan Range 16 Terrain Scan Range 16 Terrain Scan Density 210 ECM Strength 2 Corruption Block 4 Evasion (%) 64 Melee Accuracy 5 Recoil Reduction 2 Offensive Hacking 40 Defensive Hacking 20 Authchip Count 2 Item Schematics ----------------- Xenon Bombardment Thruster | -7/Factory | Hacked Gyrokinetic Inverter | -7/Factory | Hacked Hacking Suite | -7/Factory | Hacked System Shield | -7/Factory | Hacked Lrn. Proton Cannon | -7/Factory | Hacked Combat Drone Bay | -6/Data Miner | Free Lgt. Regenerative Plating | -6/Data Miner | Free Enh. Flexi-carbon Leg | -6/Data Miner | Free Imp. Thermal Defense Suite | -6/Data Miner | Free Hvy. Gatling Laser | -6/Data Miner | Free Adv. VSS Leg | -6/Data Miner | Free Point Defense Array | -6/Data Miner | Free HERF Cannon | -6/Data Miner | Free Nuclear Pulse Array | -6/Data Miner | Free Micro-nuke Launcher | -6/Data Miner | Free Robot Schematics ------------------ M-13 Machinist | -10/Mines | Hacked P-60 Hacker | -7/Factory | Hacked D-53 Grenadier | -7/Factory | Hacked L-41 Fighter | -7/Factory | Hacked G-50 Soldier | -6/Data Miner | Free M-22 Extractor | -6/Data Miner | Free S-27 Virus | -6/Data Miner | Free D-63 Destroyer | -6/Data Miner | Free A-15 Conveyor | -6/Data Miner | Free Fabricated ------------ Hacking Suite | x1 | -7/Factory | Authchip P-60 Hacker | x2 | -7/Factory T-07 Excavator | x1 | -7/Factory | Preloaded Gyrokinetic Inverter | x2 | -7/Factory Gyrokinetic Inverter | x2 | -6/Factory Enh. Force Lance | x1 | -5/Factory | Preloaded Combat Drone Bay | x1 | -5/Factory Alien Tech Used ----------------- None Achievements -------------- None Challenges ------------ None Game ------ Seed ImpactCloakingMachine Manual? 0 Play Time 01:49:15 Cumulative 371.5 hours Start 2023.09.25 @ 22:34:59 End 2023.09.26 @ 10:04:59 Sessions 3 Manual Loads 0 Difficulty Rogue Special Mode None Game No. 236 Rogue 233 Adventurer 3 Explorer 0 Win Type - Total 7 Types 6/0/1/0/0/0/0/0/0 Lore% 69 Gallery% 76 Achievement% 66 Wizard Run 0 Options --------- ASCII 0 Keyboard 0 Movement Numpad Keybinds 0 Fullscreen 1 Font 18/SmallcapsGlow Map View 76x50 Tactical HUD 1 Map Filters NONE Filters NONE Steam 1 RUN: af554bc9-e11d-4ae1-8193-0e9ed04f6606